[Event "Titled Tuesday Blitz August 1 Late 2023"]
[White "Romero Arzuaga, Yudel"]
[Black "Unat, Can Haktan"]
[WhiteFideId "3521010"]
[BlackFideId "6398073"]
[WhiteElo "2353"]
[BlackElo "2573"]
[Result "0-1"]
[Round "2"]
[TimeControl "180+1"]
[Date "2023.08.01"]
[WhiteClock "0:00:32"]
[BlackClock "0:00:10"]
[Board "122"]

1. d4 {[%clk 0:03:00]}  e6 {[%clk 0:02:58]} 2. Nf3 {[%clk 0:03:01]}  Nf6 {[%clk 0:02:58]} 3. Bg5 {[%clk 0:03:02]}  c5 {[%clk 0:02:58]} 4. e3 {[%clk 0:03:02]}  Nc6 {[%clk 0:02:57]} 5. Nbd2 {[%clk 0:03:00]}  b6 {[%clk 0:02:57]} 6. c3 {[%clk 0:03:00]}  Bb7 {[%clk 0:02:58]} 7. Bd3 {[%clk 0:03:00]}  Qc7 {[%clk 0:02:58]} 8. Qe2 {[%clk 0:03:01]}  h6 {[%clk 0:02:59]} 9. Bh4 {[%clk 0:03:00]}  Bd6 {[%clk 0:02:58]} 10. a4 {[%clk 0:02:54]}  g5 {[%clk 0:02:57]} 11. Bg3 {[%clk 0:02:54]}  Bxg3 {[%clk 0:02:58]} 12. hxg3 {[%clk 0:02:55]}  O-O-O {[%clk 0:02:56]} 13. dxc5 {[%clk 0:02:53]}  bxc5 {[%clk 0:02:56]} 14. Ba6 {[%clk 0:02:51]}  d5 {[%clk 0:02:55]} 15. O-O {[%clk 0:02:44]}  g4 {[%clk 0:02:52]} 16. Nh4 {[%clk 0:02:43]}  h5 {[%clk 0:02:50]} 17. b4 {[%clk 0:02:43]}  c4 {[%clk 0:02:47]} 18. Bxb7+ {[%clk 0:02:42]}  Qxb7 {[%clk 0:02:46]} 19. a5 {[%clk 0:02:41]}  Ne5 {[%clk 0:02:46]} 20. b5 {[%clk 0:02:35]}  Nd3 {[%clk 0:02:43]} 21. Rfb1 {[%clk 0:02:35]}  Ne4 {[%clk 0:02:39]} 22. a6 {[%clk 0:02:23]}  Qb6 {[%clk 0:02:33]} 23. Nxe4 {[%clk 0:02:23]}  dxe4 {[%clk 0:02:34]} 24. Ra4 {[%clk 0:02:22]}  Ne5 {[%clk 0:02:26]} 25. Rxc4+ {[%clk 0:02:06]}  Nxc4 {[%clk 0:02:27]} 26. Qxc4+ {[%clk 0:02:07]}  Kb8 {[%clk 0:02:10]} 27. Qxe4 {[%clk 0:02:07]}  Rd5 {[%clk 0:02:11]} 28. c4 {[%clk 0:02:01]}  Rc5 {[%clk 0:02:11]} 29. Rd1 {[%clk 0:01:54]}  Rhc8 {[%clk 0:02:06]} 30. Rd7 {[%clk 0:01:51]}  R5c7 {[%clk 0:02:06]} 31. Rd4 {[%clk 0:01:42]}  Qa5 {[%clk 0:02:02]} 32. Kh2 {[%clk 0:01:40]}  Qb6 {[%clk 0:01:23]} 33. Qe5 {[%clk 0:01:34]}  Qc5 {[%clk 0:01:21]} 34. Qe4 {[%clk 0:01:31]}  Qb6 {[%clk 0:01:19]} 35. Qf4 {[%clk 0:01:23]}  Re8 {[%clk 0:01:09]} 36. Qe4 {[%clk 0:01:18]}  Qc5 {[%clk 0:01:02]} 37. f3 {[%clk 0:01:17]}  Rg8 {[%clk 0:00:51]} 38. f4 {[%clk 0:01:14]}  Rgc8 {[%clk 0:00:33]} 39. Qd3 {[%clk 0:01:09]}  Qb6 {[%clk 0:00:31]} 40. f5 {[%clk 0:01:05]}  e5 {[%clk 0:00:29]} 41. Rd6 {[%clk 0:01:05]}  Qc5 {[%clk 0:00:29]} 42. Rc6 {[%clk 0:01:03]}  Rxc6 {[%clk 0:00:29]} 43. bxc6 {[%clk 0:01:04]}  Qxc6 {[%clk 0:00:30]} 44. Qb3+ {[%clk 0:01:03]}  Ka8 {[%clk 0:00:29]} 45. e4 {[%clk 0:01:00]}  Qxe4 {[%clk 0:00:27]} 46. Qb5 {[%clk 0:00:58]}  f6 {[%clk 0:00:22]} 47. Qd7 {[%clk 0:00:55]}  Qc6 {[%clk 0:00:20]} 48. Qf7 {[%clk 0:00:52]}  Qxa6 {[%clk 0:00:20]} 49. Ng6 {[%clk 0:00:52]}  Rxc4 {[%clk 0:00:19]} 50. Ne7 {[%clk 0:00:50]}  Rc7 {[%clk 0:00:14]} 51. Qd5+ {[%clk 0:00:49]}  Kb8 {[%clk 0:00:12]} 52. Qd8+ {[%clk 0:00:45]}  Kb7 {[%clk 0:00:11]} 53. Nd5 {[%clk 0:00:45]}  Rc5 {[%clk 0:00:08]} 54. Qe7+ {[%clk 0:00:44]}  Kb8 {[%clk 0:00:03]} 55. Qxc5 {[%clk 0:00:43]}  Qb7 {[%clk 0:00:04]} 56. Qf8+ {[%clk 0:00:42]}  Qc8 {[%clk 0:00:04]} 57. Qxc8+ {[%clk 0:00:41]}  Kxc8 {[%clk 0:00:05]} 58. Nxf6 {[%clk 0:00:42]}  a5 {[%clk 0:00:06]} 59. Ne4 {[%clk 0:00:42]}  a4 {[%clk 0:00:07]} 60. Nd2 {[%clk 0:00:43]}  a3 {[%clk 0:00:07]} 61. Nb3 {[%clk 0:00:43]}  Kd7 {[%clk 0:00:08]} 62. Kg1 {[%clk 0:00:41]}  Ke7 {[%clk 0:00:09]} 63. Kf2 {[%clk 0:00:41]}  Kf6 {[%clk 0:00:09]} 64. Ke3 {[%clk 0:00:42]}  Kxf5 {[%clk 0:00:10]} 65. Na1 {[%clk 0:00:42]}  a2 {[%clk 0:00:10]} 66. Kd3 {[%clk 0:00:41]}  e4+ {[%clk 0:00:11]} 67. Kd4 {[%clk 0:00:40]}  Kf6 {[%clk 0:00:05]} 68. Kxe4 {[%clk 0:00:40]}  Ke6 {[%clk 0:00:06]} 69. Kf4 {[%clk 0:00:40]}  Kd5 {[%clk 0:00:07]} 70. Ke3 {[%clk 0:00:36]}  Kc4 {[%clk 0:00:08]} 71. Kd2 {[%clk 0:00:37]}  Kd4 {[%clk 0:00:07]} 72. Kc2 {[%clk 0:00:37]}  Ke3 {[%clk 0:00:08]} 73. Kb2 {[%clk 0:00:37]}  Kf2 {[%clk 0:00:09]} 74. Nc2 {[%clk 0:00:38]}  Kxg2 {[%clk 0:00:09]} 75. Ne3+ {[%clk 0:00:38]}  Kxg3 {[%clk 0:00:09]} 76. Nf5+ {[%clk 0:00:38]}  Kf4 {[%clk 0:00:09]} 77. Ng7 {[%clk 0:00:37]}  h4 {[%clk 0:00:10]} 78. Ne6+ {[%clk 0:00:38]}  Kf3 {[%clk 0:00:10]} 79. Ng5+ {[%clk 0:00:37]}  Kf4 {[%clk 0:00:09]} 80. Ne6+ {[%clk 0:00:37]}  Ke3 {[%clk 0:00:10]} 81. Ng5 {[%clk 0:00:32]}  h3 {[%clk 0:00:10]} 0-1


[Site "https://www.chess.com"]

[Event "Titled Tuesday Blitz August 1 Late 2023"]
[White "Kochiev, Ivan"]
[Black "Peatman, Carter"]
[WhiteFideId "2917890"]
[BlackFideId "2096480"]
[WhiteElo "2542"]
[BlackElo "2351"]
[Result "1-0"]
[Round "2"]
[TimeControl "180+1"]
[Date "2023.08.01"]
[WhiteClock "0:00:14"]
[BlackClock "0:00:06"]
[Board "123"]

1. e4 {[%clk 0:02:52]}  e5 {[%clk 0:02:58]} 2. Nf3 {[%clk 0:02:51]}  Nf6 {[%clk 0:02:54]} 3. Nxe5 {[%clk 0:02:51]}  d6 {[%clk 0:02:53]} 4. Nf3 {[%clk 0:02:51]}  Nxe4 {[%clk 0:02:51]} 5. d4 {[%clk 0:02:52]}  d5 {[%clk 0:02:50]} 6. Bd3 {[%clk 0:02:53]}  Nd6 {[%clk 0:02:49]} 7. O-O {[%clk 0:02:52]}  Be7 {[%clk 0:02:50]} 8. h3 {[%clk 0:02:52]}  O-O {[%clk 0:02:50]} 9. Bf4 {[%clk 0:02:53]}  Nd7 {[%clk 0:02:47]} 10. Re1 {[%clk 0:02:53]}  Nf6 {[%clk 0:02:46]} 11. Nbd2 {[%clk 0:02:52]}  Re8 {[%clk 0:02:41]} 12. c3 {[%clk 0:02:45]}  c6 {[%clk 0:02:36]} 13. Ne5 {[%clk 0:02:45]}  Bf5 {[%clk 0:02:25]} 14. Qe2 {[%clk 0:02:33]}  Bxd3 {[%clk 0:02:20]} 15. Qxd3 {[%clk 0:02:33]}  Nfe4 {[%clk 0:02:11]} 16. Re3 {[%clk 0:02:23]}  Nxd2 {[%clk 0:01:54]} 17. Qxd2 {[%clk 0:02:24]}  f6 {[%clk 0:01:53]} 18. Ng4 {[%clk 0:01:50]}  Nc4 {[%clk 0:01:52]} 19. Qd3 {[%clk 0:01:50]}  Nxe3 {[%clk 0:01:50]} 20. Nxe3 {[%clk 0:01:51]}  Bd6 {[%clk 0:01:46]} 21. Bxd6 {[%clk 0:01:46]}  Qxd6 {[%clk 0:01:47]} 22. c4 {[%clk 0:01:47]}  dxc4 {[%clk 0:01:37]} 23. Qxc4+ {[%clk 0:01:46]}  Qe6 {[%clk 0:01:37]} 24. Qb4 {[%clk 0:01:45]}  Qd7 {[%clk 0:01:31]} 25. Rc1 {[%clk 0:01:38]}  Rad8 {[%clk 0:01:27]} 26. h4 {[%clk 0:01:35]}  Kh8 {[%clk 0:01:11]} 27. Rd1 {[%clk 0:01:20]}  Re4 {[%clk 0:01:11]} 28. g3 {[%clk 0:01:16]}  b6 {[%clk 0:01:03]} 29. Qc3 {[%clk 0:01:15]}  Re6 {[%clk 0:00:52]} 30. Nf5 {[%clk 0:01:09]}  Qd5 {[%clk 0:00:49]} 31. Ne3 {[%clk 0:01:06]}  Qe4 {[%clk 0:00:49]} 32. h5 {[%clk 0:00:56]}  h6 {[%clk 0:00:46]} 33. Qa3 {[%clk 0:00:55]}  Rxd4 {[%clk 0:00:35]} 34. Rxd4 {[%clk 0:00:48]}  Qxd4 {[%clk 0:00:36]} 35. Qxa7 {[%clk 0:00:46]}  Re8 {[%clk 0:00:35]} 36. Nf5 {[%clk 0:00:29]}  Qd1+ {[%clk 0:00:21]} 37. Kh2 {[%clk 0:00:30]}  Rg8 {[%clk 0:00:19]} 38. Nh4 {[%clk 0:00:30]}  Qd4 {[%clk 0:00:11]} 39. Kg1 {[%clk 0:00:17]}  Qd1+ {[%clk 0:00:10]} 40. Kh2 {[%clk 0:00:15]}  Qd4 {[%clk 0:00:10]} 41. Kg2 {[%clk 0:00:15]}  Qd5+ {[%clk 0:00:10]} 42. Kg1 {[%clk 0:00:14]}  b5 {[%clk 0:00:10]} 43. Qe3 {[%clk 0:00:12]}  Qxh5 {[%clk 0:00:09]} 44. Qe4 {[%clk 0:00:12]}  Qd5 {[%clk 0:00:09]} 45. Ng6+ {[%clk 0:00:12]}  Kh7 {[%clk 0:00:08]} 46. Nf8+ {[%clk 0:00:13]}  Kh8 {[%clk 0:00:06]} 47. Qh7# {[%clk 0:00:14]} 1-0


[Site "https://www.chess.com"]

[Event "Titled Tuesday Blitz August 1 Late 2023"]
[White "Senft, Sean"]
[Black "Womacka, Mathias"]
[WhiteFideId "2044960"]
[BlackFideId "4611390"]
[WhiteElo "2349"]
[BlackElo "2540"]
[Result "1/2-1/2"]
[Round "2"]
[TimeControl "180+1"]
[Date "2023.08.01"]
[WhiteClock "0:00:02"]
[BlackClock "0:00:11"]
[Board "125"]

1. d4 {[%clk 0:02:53]}  Nf6 {[%clk 0:02:59]} 2. c4 {[%clk 0:02:53]}  e6 {[%clk 0:02:59]} 3. Nc3 {[%clk 0:02:54]}  Bb4 {[%clk 0:02:59]} 4. Nf3 {[%clk 0:02:54]}  c5 {[%clk 0:02:57]} 5. g3 {[%clk 0:02:53]}  cxd4 {[%clk 0:02:57]} 6. Nxd4 {[%clk 0:02:53]}  O-O {[%clk 0:02:58]} 7. Bg2 {[%clk 0:02:52]}  d5 {[%clk 0:02:58]} 8. cxd5 {[%clk 0:02:51]}  Nxd5 {[%clk 0:02:59]} 9. Bd2 {[%clk 0:02:50]}  Nxc3 {[%clk 0:02:58]} 10. Bxc3 {[%clk 0:02:50]}  Bxc3+ {[%clk 0:02:58]} 11. bxc3 {[%clk 0:02:51]}  Qc7 {[%clk 0:02:43]} 12. Qc2 {[%clk 0:02:46]}  e5 {[%clk 0:02:34]} 13. Nb3 {[%clk 0:02:42]}  Be6 {[%clk 0:02:23]} 14. O-O {[%clk 0:02:42]}  Nd7 {[%clk 0:02:20]} 15. Rab1 {[%clk 0:02:40]}  Rab8 {[%clk 0:02:19]} 16. Rfd1 {[%clk 0:02:36]}  Rfc8 {[%clk 0:02:18]} 17. Rbc1 {[%clk 0:02:33]}  b6 {[%clk 0:02:15]} 18. c4 {[%clk 0:02:33]}  Nf6 {[%clk 0:02:02]} 19. Nd2 {[%clk 0:02:15]}  h6 {[%clk 0:01:58]} 20. Ne4 {[%clk 0:02:12]}  Nxe4 {[%clk 0:01:53]} 21. Bxe4 {[%clk 0:02:11]}  Bxc4 {[%clk 0:01:49]} 22. Bd5 {[%clk 0:02:06]}  b5 {[%clk 0:01:49]} 23. Qf5 {[%clk 0:02:01]}  Rd8 {[%clk 0:01:39]} 24. Bxc4 {[%clk 0:02:01]}  bxc4 {[%clk 0:01:39]} 25. Rxd8+ {[%clk 0:01:41]}  Rxd8 {[%clk 0:01:39]} 26. Rc3 {[%clk 0:01:37]}  Qc5 {[%clk 0:01:29]} 27. Qe4 {[%clk 0:01:36]}  Rc8 {[%clk 0:01:16]} 28. h4 {[%clk 0:01:36]}  Qd4 {[%clk 0:01:15]} 29. Qc2 {[%clk 0:01:35]}  h5 {[%clk 0:01:13]} 30. e3 {[%clk 0:01:32]}  Qd5 {[%clk 0:01:11]} 31. Qe2 {[%clk 0:01:30]}  g6 {[%clk 0:01:10]} 32. g4 {[%clk 0:01:20]}  hxg4 {[%clk 0:01:03]} 33. Qxg4 {[%clk 0:01:21]}  Rc6 {[%clk 0:01:01]} 34. Qe2 {[%clk 0:01:16]}  e4 {[%clk 0:00:59]} 35. Qc2 {[%clk 0:00:57]}  Qe6 {[%clk 0:00:57]} 36. Kf1 {[%clk 0:00:53]}  Qh3+ {[%clk 0:00:52]} 37. Ke1 {[%clk 0:00:54]}  Qh1+ {[%clk 0:00:46]} 38. Ke2 {[%clk 0:00:54]}  Qxh4 {[%clk 0:00:42]} 39. Rxc4 {[%clk 0:00:53]}  Qg4+ {[%clk 0:00:41]} 40. Ke1 {[%clk 0:00:51]}  Rxc4 {[%clk 0:00:38]} 41. Qxc4 {[%clk 0:00:52]}  Qf5 {[%clk 0:00:34]} 42. Kf1 {[%clk 0:00:46]}  a5 {[%clk 0:00:32]} 43. a4 {[%clk 0:00:44]}  Kg7 {[%clk 0:00:32]} 44. Qd4+ {[%clk 0:00:38]}  Kh7 {[%clk 0:00:32]} 45. Qd8 {[%clk 0:00:26]}  Qe5 {[%clk 0:00:23]} 46. Kg2 {[%clk 0:00:21]}  Kg7 {[%clk 0:00:21]} 47. Qb6 {[%clk 0:00:18]}  Qg5+ {[%clk 0:00:19]} 48. Kf1 {[%clk 0:00:17]}  Qd5 {[%clk 0:00:20]} 49. Ke1 {[%clk 0:00:15]}  Kh6 {[%clk 0:00:19]} 50. Qb5 {[%clk 0:00:14]}  Qd6 {[%clk 0:00:12]} 51. Qxa5 {[%clk 0:00:13]}  Qa3 {[%clk 0:00:12]} 52. Qb5 {[%clk 0:00:11]}  Qc1+ {[%clk 0:00:10]} 53. Ke2 {[%clk 0:00:12]}  Qc2+ {[%clk 0:00:11]} 54. Kf1 {[%clk 0:00:12]}  Qd1+ {[%clk 0:00:10]} 55. Kg2 {[%clk 0:00:11]}  Qg4+ {[%clk 0:00:10]} 56. Kh1 {[%clk 0:00:10]}  Qh4+ {[%clk 0:00:10]} 57. Kg1 {[%clk 0:00:10]}  Qg4+ {[%clk 0:00:11]} 58. Kf1 {[%clk 0:00:11]}  Qd1+ {[%clk 0:00:11]} 59. Kg2 {[%clk 0:00:07]}  Qg4+ {[%clk 0:00:12]} 60. Kh2 {[%clk 0:00:05]}  Qh4+ {[%clk 0:00:10]} 61. Kg1 {[%clk 0:00:03]}  Qg4+ {[%clk 0:00:11]} 62. Kf1 {[%clk 0:00:02]}  Qd1+ {[%clk 0:00:11]} 1/2-1/2


[Site "https://www.chess.com"]

[Event "Titled Tuesday Blitz August 1 Late 2023"]
[White "Janaszak, Dawid"]
[Black "Chabris, Christopher"]
[WhiteFideId "1119206"]
[BlackFideId "2005263"]
[WhiteElo "2527"]
[BlackElo "2345"]
[Result "1-0"]
[Round "2"]
[TimeControl "180+1"]
[Date "2023.08.01"]
[WhiteClock "0:01:29"]
[BlackClock "0:00:00"]
[Board "128"]

1. e4 {[%clk 0:03:00]}  e5 {[%clk 0:03:00]} 2. Nf3 {[%clk 0:02:57]}  Nc6 {[%clk 0:03:00]} 3. Bc4 {[%clk 0:02:57]}  Nf6 {[%clk 0:03:00]} 4. d4 {[%clk 0:02:56]}  exd4 {[%clk 0:02:59]} 5. Ng5 {[%clk 0:02:56]}  d5 {[%clk 0:02:54]} 6. exd5 {[%clk 0:02:56]}  Qe7+ {[%clk 0:02:55]} 7. Kf1 {[%clk 0:02:53]}  Ne5 {[%clk 0:02:53]} 8. Qxd4 {[%clk 0:02:54]}  Nxc4 {[%clk 0:02:45]} 9. Qxc4 {[%clk 0:02:54]}  Qc5 {[%clk 0:02:41]} 10. Qxc5 {[%clk 0:02:44]}  Bxc5 {[%clk 0:02:41]} 11. c4 {[%clk 0:02:44]}  Bf5 {[%clk 0:02:37]} 12. Nd2 {[%clk 0:02:31]}  Bd3+ {[%clk 0:02:14]} 13. Kg1 {[%clk 0:02:30]}  h6 {[%clk 0:02:07]} 14. Ngf3 {[%clk 0:02:28]}  Ng4 {[%clk 0:02:00]} 15. g3 {[%clk 0:02:26]}  Nxf2 {[%clk 0:01:55]} 16. b4 {[%clk 0:02:26]}  Be3 {[%clk 0:01:38]} 17. Nf1 {[%clk 0:02:17]}  Bxc1 {[%clk 0:01:05]} 18. Kxf2 {[%clk 0:02:11]}  Bb2 {[%clk 0:01:01]} 19. Re1+ {[%clk 0:02:11]}  Kf8 {[%clk 0:00:59]} 20. N1d2 {[%clk 0:02:11]}  f6 {[%clk 0:00:46]} 21. Re3 {[%clk 0:02:08]}  Bg6 {[%clk 0:00:40]} 22. Rb3 {[%clk 0:02:05]}  Be5 {[%clk 0:00:40]} 23. Nxe5 {[%clk 0:02:06]}  fxe5 {[%clk 0:00:41]} 24. Re1 {[%clk 0:02:06]}  Re8 {[%clk 0:00:40]} 25. Rbe3 {[%clk 0:02:04]}  Kf7 {[%clk 0:00:39]} 26. Rxe5 {[%clk 0:02:04]}  Rxe5 {[%clk 0:00:34]} 27. Rxe5 {[%clk 0:02:05]}  Rd8 {[%clk 0:00:32]} 28. Ke3 {[%clk 0:02:04]}  c6 {[%clk 0:00:31]} 29. Kd4 {[%clk 0:01:58]}  cxd5 {[%clk 0:00:28]} 30. Rxd5 {[%clk 0:01:59]}  Re8 {[%clk 0:00:25]} 31. Rd7+ {[%clk 0:01:56]}  Re7 {[%clk 0:00:25]} 32. Rxe7+ {[%clk 0:01:56]}  Kxe7 {[%clk 0:00:25]} 33. Nf3 {[%clk 0:01:56]}  Bf7 {[%clk 0:00:22]} 34. Ne5 {[%clk 0:01:55]}  Be6 {[%clk 0:00:22]} 35. a4 {[%clk 0:01:55]}  g5 {[%clk 0:00:20]} 36. a5 {[%clk 0:01:53]}  h5 {[%clk 0:00:19]} 37. b5 {[%clk 0:01:53]}  h4 {[%clk 0:00:19]} 38. gxh4 {[%clk 0:01:53]}  gxh4 {[%clk 0:00:19]} 39. Ng6+ {[%clk 0:01:54]}  Kd6 {[%clk 0:00:20]} 40. Nxh4 {[%clk 0:01:55]}  a6 {[%clk 0:00:20]} 41. Nf3 {[%clk 0:01:51]}  Bg4 {[%clk 0:00:19]} 42. Nd2 {[%clk 0:01:46]}  Be2 {[%clk 0:00:19]} 43. b6 {[%clk 0:01:42]}  Ke6 {[%clk 0:00:19]} 44. Ne4 {[%clk 0:01:42]}  Bf1 {[%clk 0:00:16]} 45. h4 {[%clk 0:01:41]}  Bg2 {[%clk 0:00:16]} 46. c5 {[%clk 0:01:36]}  Kf5 {[%clk 0:00:16]} 47. Nf2 {[%clk 0:01:31]}  Kf4 {[%clk 0:00:14]} 48. Nd3+ {[%clk 0:01:27]}  Kg4 {[%clk 0:00:14]} 49. Ne5+ {[%clk 0:01:28]}  Kxh4 {[%clk 0:00:14]} 50. c6 {[%clk 0:01:28]}  bxc6 {[%clk 0:00:00]} 51. Kc5 {[%clk 0:01:29]} 1-0


[Site "https://www.chess.com"]

[Event "Titled Tuesday Blitz August 1 Late 2023"]
[White "Lacasa Diaz, Jose Antonio"]
[Black "Koutlas, Nikolaos"]
[WhiteFideId "2203375"]
[BlackFideId "25827138"]
[WhiteElo "2325"]
[BlackElo "2490"]
[Result "0-1"]
[Round "2"]
[TimeControl "180+1"]
[Date "2023.08.01"]
[WhiteClock "0:00:02"]
[BlackClock "0:00:45"]
[Board "137"]

1. e4 {[%clk 0:03:00]}  e5 {[%clk 0:02:56]} 2. Nf3 {[%clk 0:03:00]}  Nc6 {[%clk 0:02:56]} 3. Bb5 {[%clk 0:03:00]}  a6 {[%clk 0:02:56]} 4. Bxc6 {[%clk 0:02:59]}  dxc6 {[%clk 0:02:55]} 5. O-O {[%clk 0:02:59]}  Bd6 {[%clk 0:02:53]} 6. d4 {[%clk 0:02:58]}  exd4 {[%clk 0:02:52]} 7. Qxd4 {[%clk 0:02:58]}  f6 {[%clk 0:02:52]} 8. Nbd2 {[%clk 0:02:51]}  Ne7 {[%clk 0:02:41]} 9. Nc4 {[%clk 0:02:39]}  Be6 {[%clk 0:02:36]} 10. Rd1 {[%clk 0:02:32]}  Bxh2+ {[%clk 0:02:16]} 11. Kxh2 {[%clk 0:02:12]}  Bxc4 {[%clk 0:02:14]} 12. Bf4 {[%clk 0:01:42]}  Be2 {[%clk 0:01:38]} 13. Qxd8+ {[%clk 0:01:13]}  Rxd8 {[%clk 0:01:37]} 14. Rxd8+ {[%clk 0:01:13]}  Kxd8 {[%clk 0:01:38]} 15. Nd4 {[%clk 0:01:11]}  Bg4 {[%clk 0:01:36]} 16. f3 {[%clk 0:01:07]}  Bd7 {[%clk 0:01:35]} 17. Rd1 {[%clk 0:01:06]}  Kc8 {[%clk 0:01:35]} 18. Nb3 {[%clk 0:01:01]}  b6 {[%clk 0:01:33]} 19. Kg3 {[%clk 0:00:51]}  g5 {[%clk 0:01:25]} 20. Be3 {[%clk 0:00:47]}  h5 {[%clk 0:01:21]} 21. Kf2 {[%clk 0:00:43]}  h4 {[%clk 0:01:19]} 22. e5 {[%clk 0:00:35]}  Nf5 {[%clk 0:00:57]} 23. exf6 {[%clk 0:00:20]}  Nxe3 {[%clk 0:00:54]} 24. Kxe3 {[%clk 0:00:21]}  Rf8 {[%clk 0:00:53]} 25. Nd4 {[%clk 0:00:11]}  Rxf6 {[%clk 0:00:52]} 26. Rd3 {[%clk 0:00:08]}  c5 {[%clk 0:00:50]} 27. Ne2 {[%clk 0:00:07]}  Bb5 {[%clk 0:00:46]} 28. Rc3 {[%clk 0:00:06]}  Re6+ {[%clk 0:00:45]} 29. Kd2 {[%clk 0:00:02]}  Rxe2+ {[%clk 0:00:45]} 0-1


[Site "https://www.chess.com"]

[Event "Titled Tuesday Blitz August 1 Late 2023"]
[White "SicilianPanzer"]
[Black "Besedes, Danilo"]
[BlackFideId "946796"]
[WhiteElo "2320"]
[BlackElo "2489"]
[Result "0-1"]
[Round "2"]
[TimeControl "180+1"]
[Date "2023.08.01"]
[WhiteClock "0:00:03"]
[BlackClock "0:00:52"]
[Board "138"]

1. e4 {[%clk 0:03:00]}  c5 {[%clk 0:02:59]} 2. Nf3 {[%clk 0:03:00]}  Nc6 {[%clk 0:02:59]} 3. Bb5 {[%clk 0:02:59]}  e6 {[%clk 0:02:58]} 4. O-O {[%clk 0:02:58]}  Nge7 {[%clk 0:02:58]} 5. Re1 {[%clk 0:02:58]}  b6 {[%clk 0:02:57]} 6. c3 {[%clk 0:02:56]}  a6 {[%clk 0:02:54]} 7. Bf1 {[%clk 0:02:55]}  d5 {[%clk 0:02:51]} 8. exd5 {[%clk 0:02:50]}  Nxd5 {[%clk 0:02:50]} 9. d4 {[%clk 0:02:48]}  cxd4 {[%clk 0:02:49]} 10. Nxd4 {[%clk 0:02:47]}  Bb7 {[%clk 0:02:48]} 11. Nxc6 {[%clk 0:01:42]}  Bxc6 {[%clk 0:02:48]} 12. Nd2 {[%clk 0:01:42]}  Be7 {[%clk 0:02:45]} 13. c4 {[%clk 0:01:39]}  Nf6 {[%clk 0:02:40]} 14. b3 {[%clk 0:01:31]}  Qd4 {[%clk 0:02:02]} 15. Rb1 {[%clk 0:01:21]}  Bc5 {[%clk 0:01:46]} 16. Re2 {[%clk 0:00:58]}  Qh4 {[%clk 0:01:37]} 17. g3 {[%clk 0:00:47]}  Qh5 {[%clk 0:01:28]} 18. Bb2 {[%clk 0:00:31]}  O-O-O {[%clk 0:01:10]} 19. Bxf6 {[%clk 0:00:29]}  gxf6 {[%clk 0:01:09]} 20. b4 {[%clk 0:00:26]}  Bd4 {[%clk 0:01:03]} 21. Re1 {[%clk 0:00:11]}  Bxf2+ {[%clk 0:00:59]} 22. Kxf2 {[%clk 0:00:10]}  Qxh2+ {[%clk 0:00:59]} 23. Ke3 {[%clk 0:00:10]}  Rxd2 {[%clk 0:00:51]} 24. Qxd2 {[%clk 0:00:08]}  Qh6+ {[%clk 0:00:52]} 25. Ke2 {[%clk 0:00:07]}  Bf3+ {[%clk 0:00:52]} 26. Kxf3 {[%clk 0:00:03]}  Qxd2 {[%clk 0:00:52]} 0-1


[Site "https://www.chess.com"]

[Event "Titled Tuesday Blitz August 1 Late 2023"]
[White "Cooper, Aaron"]
[Black "Grossboss19"]
[WhiteFideId "2634945"]
[WhiteElo "2316"]
[BlackElo "2484"]
[Result "1-0"]
[Round "2"]
[TimeControl "180+1"]
[Date "2023.08.01"]
[WhiteClock "0:00:42"]
[BlackClock "0:00:50"]
[Board "140"]

1. e4 {[%clk 0:03:00]}  c5 {[%clk 0:02:58]} 2. Nf3 {[%clk 0:02:59]}  Nf6 {[%clk 0:02:52]} 3. Nc3 {[%clk 0:02:56]}  Nc6 {[%clk 0:02:50]} 4. Bb5 {[%clk 0:02:49]}  d6 {[%clk 0:02:47]} 5. d4 {[%clk 0:02:47]}  cxd4 {[%clk 0:02:47]} 6. Qxd4 {[%clk 0:02:46]}  a6 {[%clk 0:02:44]} 7. Bxc6+ {[%clk 0:02:46]}  bxc6 {[%clk 0:02:45]} 8. e5 {[%clk 0:02:38]}  Nd7 {[%clk 0:02:40]} 9. O-O {[%clk 0:02:30]}  d5 {[%clk 0:02:36]} 10. e6 {[%clk 0:02:25]}  fxe6 {[%clk 0:02:35]} 11. Bf4 {[%clk 0:02:08]}  Nf6 {[%clk 0:02:21]} 12. Rfe1 {[%clk 0:02:01]}  h6 {[%clk 0:02:17]} 13. Ne5 {[%clk 0:01:54]}  Bb7 {[%clk 0:01:57]} 14. Qd3 {[%clk 0:01:45]}  Qb6 {[%clk 0:01:38]} 15. Qg6+ {[%clk 0:01:42]}  Kd8 {[%clk 0:01:38]} 16. Nf7+ {[%clk 0:01:37]}  Kc8 {[%clk 0:01:38]} 17. Nxh8 {[%clk 0:01:33]}  Qxb2 {[%clk 0:01:38]} 18. Qf7 {[%clk 0:01:15]}  Qxc3 {[%clk 0:01:35]} 19. Qxf8+ {[%clk 0:01:14]}  Kd7 {[%clk 0:01:35]} 20. Qf7 {[%clk 0:01:09]}  Ne4 {[%clk 0:01:08]} 21. Ng6 {[%clk 0:00:46]}  Qd4 {[%clk 0:00:50]} 22. Qxe7+ {[%clk 0:00:42]} 1-0


[Site "https://www.chess.com"]

[Event "Titled Tuesday Blitz August 1 Late 2023"]
[White "Nanu, Costica-Ciprian"]
[Black "Gertler, David"]
[WhiteFideId "1204580"]
[BlackFideId "2017377"]
[WhiteElo "2481"]
[BlackElo "2311"]
[Result "1-0"]
[Round "2"]
[TimeControl "180+1"]
[Date "2023.08.01"]
[WhiteClock "0:00:24"]
[BlackClock "0:00:14"]
[Board "143"]

1. e4 {[%clk 0:03:00]}  e5 {[%clk 0:02:58]} 2. Nf3 {[%clk 0:03:00]}  Nc6 {[%clk 0:02:59]} 3. Bb5 {[%clk 0:03:00]}  Bc5 {[%clk 0:02:59]} 4. c3 {[%clk 0:02:58]}  Qf6 {[%clk 0:02:59]} 5. d4 {[%clk 0:02:37]}  exd4 {[%clk 0:02:59]} 6. Bxc6 {[%clk 0:02:33]}  dxc6 {[%clk 0:02:57]} 7. cxd4 {[%clk 0:02:32]}  Bb6 {[%clk 0:02:56]} 8. e5 {[%clk 0:02:28]}  Qg6 {[%clk 0:02:55]} 9. O-O {[%clk 0:02:26]}  Bg4 {[%clk 0:02:51]} 10. Be3 {[%clk 0:02:22]}  Rd8 {[%clk 0:02:39]} 11. Nbd2 {[%clk 0:02:19]}  Ne7 {[%clk 0:02:38]} 12. Kh1 {[%clk 0:01:48]}  Nf5 {[%clk 0:02:25]} 13. Qb3 {[%clk 0:01:44]}  O-O {[%clk 0:02:13]} 14. h3 {[%clk 0:01:44]}  Qh5 {[%clk 0:01:48]} 15. Qc3 {[%clk 0:01:21]}  Rd5 {[%clk 0:01:29]} 16. Nh2 {[%clk 0:00:58]}  Bxh3 {[%clk 0:01:08]} 17. gxh3 {[%clk 0:00:53]}  Qxh3 {[%clk 0:01:09]} 18. Bf4 {[%clk 0:00:52]}  Qh5 {[%clk 0:01:01]} 19. Qf3 {[%clk 0:00:50]}  Qxf3+ {[%clk 0:00:56]} 20. Nhxf3 {[%clk 0:00:49]}  Nxd4 {[%clk 0:00:56]} 21. Nxd4 {[%clk 0:00:46]}  Bxd4 {[%clk 0:00:57]} 22. Nf3 {[%clk 0:00:45]}  Rfd8 {[%clk 0:00:52]} 23. Nxd4 {[%clk 0:00:40]}  Rxd4 {[%clk 0:00:53]} 24. Be3 {[%clk 0:00:40]}  R4d5 {[%clk 0:00:52]} 25. f4 {[%clk 0:00:39]}  a6 {[%clk 0:00:52]} 26. Kg2 {[%clk 0:00:39]}  f6 {[%clk 0:00:39]} 27. exf6 {[%clk 0:00:37]}  gxf6 {[%clk 0:00:39]} 28. Kf3 {[%clk 0:00:38]}  Kf7 {[%clk 0:00:40]} 29. Rh1 {[%clk 0:00:38]}  h5 {[%clk 0:00:38]} 30. Rh2 {[%clk 0:00:37]}  Re8 {[%clk 0:00:36]} 31. Rd2 {[%clk 0:00:30]}  Kg6 {[%clk 0:00:31]} 32. Rg1+ {[%clk 0:00:29]}  Kf5 {[%clk 0:00:30]} 33. Rc1 {[%clk 0:00:28]}  h4 {[%clk 0:00:26]} 34. Rxd5+ {[%clk 0:00:27]}  cxd5 {[%clk 0:00:26]} 35. Rxc7 {[%clk 0:00:27]}  Rh8 {[%clk 0:00:27]} 36. Rc1 {[%clk 0:00:24]}  h3 {[%clk 0:00:24]} 37. Rh1 {[%clk 0:00:24]}  h2 {[%clk 0:00:24]} 38. Bf2 {[%clk 0:00:24]}  Rh3+ {[%clk 0:00:20]} 39. Bg3 {[%clk 0:00:24]}  d4 {[%clk 0:00:14]} 40. Rxh2 {[%clk 0:00:24]} 1-0


[Site "https://www.chess.com"]